bitfinex/quotes_BTCUSD_20251104
["timestamp","ask_amount","ask_price","bid_price","bid_amount"]
[1762276897931,0.19755037,101240.0,101230.0,0.00024]
[1762276898309,0.22154859,101250.0,101230.0,0.00024]
[1762276898481,0.29114859,101250.0,101230.0,0.00024]
[1762276898679,0.31514859,101250.0,101230.0,0.00024]
[1762276898887,0.0936,101240.0,101230.0,0.00024]
[1762276899183,0.19755037,101240.0,101230.0,0.000386]
[1762276899586,0.22154859,101250.0,101230.0,0.000386]
[1762276899787,0.34,101250.0,101230.0,0.000386]
[1762276899953,0.2533824,101270.0,101230.0,0.079686]
[1762276900158,0.19751188,101260.0,101230.0,0.079686]
[1762276900436,0.21726728,101260.0,101230.0,0.079686]
[1762276900568,0.32499358,101260.0,101230.0,0.000386]
[1762276900791,0.19755037,101240.0,101230.0,0.000386]
[1762276901173,0.31513124,101250.0,101230.0,0.000386]
[1762276901489,0.19751802,101260.0,101230.0,0.079686]
[1762276901694,0.19751802,101260.0,101230.0,0.000386]
[1762276901695,0.32498718,101260.0,101230.0,0.000386]
[1762276901900,0.22151162,101260.0,101230.0,0.000386]
[1762276902107,0.13957,101270.0,101230.0,0.28783927]
[1762276902314,0.26746297,101270.0,101230.0,0.20853927]
[1762276902509,0.26746297,101270.0,101240.0,0.19754978]
[1762276902719,0.0936,101290.0,101250.0,0.19752991]
[1762276902884,0.13957,101290.0,101260.0,0.19751083]
[1762276903088,0.04597,101290.0,101270.0,0.19749135]
[1762276903322,0.09388,101310.0,101280.0,0.1974723]
[1762276903517,0.00028,101310.0,101300.0,0.03951645]
[1762276904118,0.00028,101310.0,101300.0,0.31624981]
[1762276904478,0.0020339,101310.0,101300.0,0.31624981]
[1762276904633,0.0002,101340.0,101320.0,0.19738925]
[1762276904834,0.00034592,101340.0,101330.0,0.03902]
[1762276905222,0.28763807,101360.0,101330.0,0.03902]
[1762276905423,0.37185836,101360.0,101330.0,0.03902]
[1762276905632,0.25425782,101360.0,101330.0,0.1172]
[1762276905852,0.19735543,101340.0,101330.0,0.03902]
[1762276906049,0.00890906,101340.0,101330.0,0.03902]
[1762276906703,0.20626449,101340.0,101330.0,0.03902]
[1762276907022,0.19737598,101330.0,101310.0,0.03902]
[1762276907275,0.19737598,101330.0,101300.0,0.03951645]
[1762276907276,0.19741387,101310.0,101300.0,0.03951645]
[1762276907504,0.20632293,101310.0,101300.0,0.03951645]
[1762276907702,0.34890906,101310.0,101300.0,0.03951645]
[1762276907873,0.54632293,101310.0,101300.0,0.03951645]
[1762276908360,0.34890906,101310.0,101300.0,0.03927388]
[1762276908569,0.34890906,101310.0,101300.0,0.0394198]
[1762276908784,0.48847906,101310.0,101300.0,0.0394198]
[1762276908983,0.68589293,101310.0,101300.0,0.0394198]
[1762276909533,0.00890906,101310.0,101300.0,0.35405316]
[1762276909762,0.00890906,101310.0,101300.0,1.02420455]
[1762276909965,0.06853621,101350.0,101330.0,0.19737469]
[1762276910270,0.11608213,101360.0,101340.0,0.19735501]
[1762276910504,0.06853621,101350.0,101320.0,0.28542788]
[1762276910708,0.24486296,101360.0,101330.0,0.17594605]
[1762276910709,0.00075118,101340.0,101330.0,0.17594605]
[1762276910960,0.00075118,101340.0,101330.0,1.21829856]
[1762276911126,0.04754592,101360.0,101350.0,0.7697213]
[1762276911484,0.025,101370.0,101360.0,0.21958485]
[1762276911899,0.025,101370.0,101360.0,0.3173509]
[1762276912099,0.025,101370.0,101360.0,0.88973624]
[1762276912298,0.025,101370.0,101360.0,0.3173509]
[1762276913219,0.025,101370.0,101360.0,0.37326254]
[1762276914081,0.025,101370.0,101360.0,0.17594605]
[1762276914282,0.025,101370.0,101350.0,0.19733427]
[1762276914283,0.09353621,101370.0,101350.0,0.09776605]
[1762276914675,0.09353621,101370.0,101350.0,0.07818]
[1762276914676,0.43353621,101370.0,101350.0,0.07818]
[1762276914860,0.43353621,101370.0,101350.0,0.27551577]
[1762276915073,0.43353621,101370.0,101350.0,0.27551441]
[1762276915415,0.43353621,101370.0,101350.0,0.27551457]
[1762276915592,0.09353621,101370.0,101360.0,0.28150787]
[1762276915797,0.025,101370.0,101360.0,0.37326254]
[1762276916093,0.025,101370.0,101360.0,0.17594605]
[1762276916325,0.025,101370.0,101360.0,0.37616336]
[1762276916529,0.025,101370.0,101360.0,0.37326254]
[1762276917484,0.025,101370.0,101360.0,0.27549649]
[1762276917871,0.03575087,101370.0,101360.0,0.27549649]
[1762276920315,0.03575087,101370.0,101360.0,0.19731649]
[1762276920517,0.03575087,101370.0,101360.0,0.27549649]
[1762276921341,0.06853621,101390.0,101380.0,0.19727756]
[1762276921540,0.14147961,101400.0,101390.0,0.19725811]
[1762276921753,0.06838824,101400.0,101390.0,0.19725811]
[1762276922166,0.3970663,101440.0,101420.0,0.19719976]
[1762276922167,0.12082192,101430.0,101420.0,0.19719976]
[1762276922381,0.12096767,101430.0,101420.0,0.19719976]
[1762276922588,0.00014575,101430.0,101410.0,0.1972192]
[1762276922797,0.00014575,101430.0,101420.0,0.19719976]
[1762276923581,0.07124767,101460.0,101440.0,0.19716088]
[1762276923780,0.19728378,101480.0,101440.0,0.20701892]
[1762276923986,0.31623971,101480.0,101440.0,0.20701892]
[1762276924185,0.00068593,101480.0,101440.0,0.20701892]
[1762276924393,0.00068593,101480.0,101470.0,0.19710259]
[1762276924535,0.00068593,101480.0,101470.0,0.0637868]
[1762276924753,0.00068593,101480.0,101460.0,0.19711691]
[1762276924965,0.00068593,101480.0,101440.0,0.20701892]
[1762276925163,0.00068593,101480.0,101440.0,0.00985804]
[1762276925481,0.09515593,101480.0,101450.0,0.19714086]
[1762276925690,0.63223949,101480.0,101440.0,0.20701806]
[1762276925887,0.63223965,101480.0,101440.0,0.20701806]
[1762276926050,0.19711074,101470.0,101430.0,0.20700347]
[1762276926246,0.29,101460.0,101420.0,0.20705974]
[1762276926505,0.29,101460.0,101440.0,0.19715848]
[1762276926647,0.19710282,101470.0,101430.0,0.30480537]
[1762276926850,0.03618228,101460.0,101430.0,0.29494437]
[1762276927137,0.03618228,101460.0,101430.0,0.30480338]
[1762276927308,0.00175052,101440.0,101420.0,0.19718664]
[1762276927516,0.03618228,101470.0,101440.0,0.19715918]
[1762276927727,0.03618228,101470.0,101450.0,0.19714021]
[1762276927944,0.0002,101480.0,101460.0,0.19712201]
[1762276928156,0.0002,101480.0,101440.0,0.19715645]
[1762276928360,0.09467,101480.0,101450.0,0.20953326]
[1762276928576,0.03618228,101470.0,101450.0,0.19967479]
[1762276928784,0.34068593,101480.0,101470.0,0.19710259]
[1762276928998,0.00068593,101480.0,101470.0,0.19710259]
[1762276929545,0.00039079,101480.0,101470.0,0.19710259]
[1762276930780,0.00039079,101480.0,101460.0,0.29488806]
[1762276930986,0.00039079,101480.0,101470.0,0.19710259]
[1762276931589,0.00039079,101480.0,101470.0,0.19693401]
[1762276931952,0.00039079,101480.0,101460.0,0.19712201]
[1762276932179,0.00039079,101480.0,101470.0,0.19710259]
[1762276932492,0.00039079,101480.0,101450.0,0.97729536]
[1762276932493,0.03618228,101470.0,101450.0,0.97729536]
[1762276932698,0.03618228,101480.0,101470.0,0.19710259]
[1762276932959,0.03978228,101480.0,101470.0,0.19710259]
[1762276933189,0.03978228,101480.0,101470.0,0.96740154]
[1762276933190,0.00634973,101480.0,101470.0,0.96740154]
[1762276933636,0.00634973,101480.0,101470.0,0.19710259]
[1762276934075,0.00634973,101480.0,101470.0,0.96740154]
[1762276934303,0.00627319,101480.0,101470.0,0.96740154]
[1762276934533,0.15,101500.0,101490.0,0.19706375]
[1762276934757,1e-08,101500.0,101490.0,1.42696153]
[1762276934991,1e-08,101500.0,101490.0,1.44802453]
[1762276935225,0.025,101530.0,101510.0,0.19702278]
[1762276935226,0.0244061,101530.0,101510.0,0.19702278]
[1762276935449,0.0244061,101530.0,101510.0,0.19702474]
[1762276935673,0.0239687,101530.0,101520.0,0.19700551]
[1762276936125,0.0239687,101530.0,101510.0,0.19701678]
[1762276936126,0.02342195,101530.0,101510.0,0.19701678]
[1762276936375,0.03585423,101520.0,101500.0,0.20686362]
[1762276936606,0.37585423,101520.0,101490.0,0.09776605]
[1762276936829,0.37585423,101520.0,101480.0,0.19706594]
[1762276937064,0.37585423,101520.0,101500.0,0.19704425]
[1762276937290,0.57286153,101520.0,101480.0,0.20706577]
[1762276937518,0.57286153,101520.0,101510.0,0.19702492]
[1762276937519,0.37585423,101520.0,101510.0,0.19702492]
[1762276937760,0.02342195,101530.0,101520.0,0.19700551]
[1762276938206,0.02342195,101530.0,101520.0,0.19500551]
[1762276939843,0.02342195,101530.0,101510.0,0.19702492]
[1762276940074,0.02342195,101530.0,101520.0,0.19700551]
[1762276940332,0.05960423,101530.0,101520.0,0.19700551]
[1762276940553,0.02342195,101530.0,101510.0,0.19702492]
[1762276940778,0.02342195,101530.0,101520.0,0.19700551]
[1762276941223,0.02417103,101530.0,101520.0,0.19700551]
[1762276941927,1e-08,101530.0,101520.0,0.29477156]
[1762276942185,1e-08,101530.0,101520.0,0.63477156]
[1762276942404,1e-08,101530.0,101520.0,0.64477155]
[1762276943033,1e-08,101530.0,101520.0,0.65477154]
[1762276943274,3.0,101600.0,101590.0,0.19686826]
[1762276943520,3.0,101600.0,101570.0,0.00984542]
[1762276943521,0.00014566,101600.0,101570.0,0.00984542]
[1762276943764,0.00014566,101600.0,101570.0,0.21991939]
[1762276943991,0.25667515,101590.0,101540.0,0.21992314]
[1762276944208,0.34,101580.0,101550.0,0.19694686]
[1762276944432,0.03618228,101570.0,101540.0,0.0132]
[1762276944640,0.03618228,101550.0,101540.0,0.19696671]
[1762276944856,0.03618228,101550.0,101540.0,0.21016671]
[1762276945068,0.03618228,101550.0,101530.0,0.0132]
[1762276945327,0.03618228,101550.0,101530.0,0.22338456]
[1762276945541,0.03618228,101550.0,101540.0,0.30793276]
[1762276945759,0.03618228,101550.0,101540.0,0.11096605]
[1762276945970,0.03618228,101550.0,101540.0,0.30793276]
[1762276945971,0.03632788,101550.0,101540.0,0.30793276]
[1762276946188,0.03632788,101550.0,101540.0,0.19696671]
[1762276946396,0.0001456,101550.0,101540.0,0.30793276]
[1762276946854,0.2073188,101630.0,101580.0,0.19688856]
[1762276946855,0.26670231,101610.0,101580.0,0.19688856]
[1762276947065,0.05042084,101610.0,101570.0,0.20674821]
[1762276947278,0.28994151,101600.0,101560.0,0.20677098]
[1762276947483,0.03618228,101570.0,101560.0,0.19692716]
[1762276948042,0.03618228,101600.0,101570.0,0.1969071]
[1762276948237,0.04602479,101600.0,101560.0,0.21983355]
[1762276948444,0.12927228,101600.0,101560.0,0.01306]
[1762276948813,0.03618228,101580.0,101570.0,0.19690853]
[1762276949402,0.03618228,101580.0,101570.0,0.20996853]
[1762276949606,0.00223183,101600.0,101590.0,0.19686977]
[1762276949607,0.00048545,101600.0,101590.0,0.19686977]
[1762276949829,0.00048545,101600.0,101570.0,0.01306]
[1762276950028,0.38996,101590.0,101550.0,0.20676376]
[1762276950412,0.03618228,101580.0,101560.0,0.1969274]
[1762276950635,0.2330726,101580.0,101550.0,4e-05]
[1762276950854,0.23307286,101580.0,101550.0,0.21989375]
[1762276951106,0.05118228,101580.0,101550.0,0.2198906]
[1762276951349,0.13350228,101580.0,101550.0,0.19698629]
[1762276951558,0.13350228,101570.0,101560.0,0.19692792]
[1762276951796,0.03618228,101560.0,101550.0,0.20683365]
[1762276952019,0.03618228,101570.0,101550.0,0.20683365]
[1762276952232,0.03618228,101570.0,101560.0,0.29469397]
[1762276952435,0.04996,101590.0,101570.0,0.19689129]
[1762276952647,0.14728,101590.0,101570.0,0.19690715]
[1762276952880,0.04996,101590.0,101580.0,0.19688915]
[1762276953085,0.14776515,101590.0,101570.0,0.19690715]
[1762276953289,0.03618228,101580.0,101570.0,0.19690715]
[1762276953932,0.03618228,101580.0,101560.0,0.20677431]
[1762276954181,0.03618228,101580.0,101570.0,0.19690853]
[1762276954809,0.03666743,101590.0,101570.0,0.20996853]
[1762276955017,0.00048515,101590.0,101580.0,0.19688915]
[1762276955638,0.00048515,101590.0,101580.0,0.19488915]
[1762276956268,0.09780515,101590.0,101560.0,0.20677204]
[1762276956476,0.13398743,101590.0,101560.0,0.20677204]
[1762276956685,0.03666743,101590.0,101570.0,0.11595279]
[1762276956921,0.00048515,101590.0,101580.0,0.19688915]
[1762276957145,0.00048515,101590.0,101570.0,0.29467338]
[1762276957318,0.0019822,101590.0,101560.0,0.20677204]
[1762276957553,0.03618228,101580.0,101550.0,0.20683365]
[1762276957813,0.37618228,101580.0,101550.0,4e-05]
[1762276958056,0.03618228,101570.0,101550.0,0.20661295]
[1762276958292,0.03666743,101590.0,101560.0,0.31760036]
[1762276958513,0.03666743,101590.0,101550.0,4e-05]
[1762276958744,0.03666743,101590.0,101550.0,0.2198893]
[1762276958955,0.33086064,101590.0,101550.0,0.2068293]
[1762276959131,0.34070412,101590.0,101550.0,0.2068293]
[1762276959373,0.03618228,101580.0,101550.0,0.2068293]
[1762276959840,0.03618228,101580.0,101560.0,0.19692626]
[1762276960054,0.03618228,101580.0,101550.0,0.2068293]
[1762276960266,0.47350228,101580.0,101550.0,0.2068293]
[1762276960487,0.37618228,101560.0,101550.0,4e-05]
[1762276961383,0.15902,101570.0,101550.0,4e-05]
[1762276961384,0.35593146,101570.0,101550.0,4e-05]
[1762276961598,0.15902,101570.0,101550.0,4e-05]
[1762276962064,0.35592895,101570.0,101550.0,4e-05]
[1762276962288,0.25861001,101570.0,101550.0,4e-05]
[1762276962651,0.0467,101570.0,101550.0,0.19698393]
[1762276962860,0.00099823,101570.0,101560.0,0.19692792]
[1762276963416,0.00099823,101570.0,101560.0,0.21521747]
[1762276963545,0.18120051,101570.0,101550.0,4e-05]
[1762276963743,0.03618228,101560.0,101550.0,0.01832982]
[1762276963943,0.03618228,101560.0,101550.0,4e-05]
[1762276964147,0.13350228,101560.0,101550.0,0.02119638]
[1762276964612,0.13350228,101560.0,101550.0,4e-05]
[1762276964817,0.03618228,101560.0,101550.0,0.19698731]
[1762276965429,0.03618228,101560.0,101550.0,4e-05]
[1762276965759,0.03224373,101560.0,101550.0,0.19698731]
[1762276966326,0.37224373,101560.0,101550.0,0.19698731]
[1762276966528,0.14402,101570.0,101560.0,0.19692792]
[1762276966929,0.14402,101570.0,101550.0,0.19698731]
[1762276967263,0.19691026,101570.0,101550.0,0.02121094]
[1762276967465,0.25860914,101570.0,101550.0,4e-05]
[1762276967666,0.15902,101570.0,101550.0,0.19698404]
[1762276967868,0.14402,101570.0,101550.0,0.19698404]
[1762276968320,0.0467,101570.0,101560.0,0.19692792]
[1762276968498,0.42288228,101570.0,101560.0,0.19692792]
[1762276968830,0.03618228,101570.0,101560.0,0.19692792]
[1762276969038,0.30451888,101590.0,101550.0,0.2068314]
[1762276969243,0.03618228,101580.0,101560.0,0.20677229]
[1762276969487,0.03618228,101580.0,101570.0,0.19690853]
[1762276969685,0.00048515,101590.0,101580.0,0.19688915]
[1762276969896,0.29421497,101580.0,101550.0,0.2068314]
[1762276970102,0.18020228,101570.0,101550.0,0.22800835]
[1762276970299,0.18020228,101570.0,101550.0,0.2068314]
[1762276970874,0.37618228,101570.0,101550.0,0.2198914]
[1762276971078,0.52020228,101570.0,101550.0,0.2068314]
[1762276971439,0.52020228,101570.0,101560.0,0.19692792]
[1762276971992,0.03618228,101570.0,101560.0,0.19692792]
[1762276973058,0.03618228,101570.0,101550.0,4e-05]
[1762276973059,0.19850421,101570.0,101550.0,0.1969849]
[1762276973271,0.19850421,101570.0,101560.0,0.20490458]
[1762276973272,0.01794193,101570.0,101560.0,0.20490458]
[1762276973412,0.16232193,101570.0,101550.0,0.1969849]
[1762276973764,0.01794193,101570.0,101560.0,0.19692792]
[1762276974170,0.01714193,101570.0,101560.0,0.19692792]
[1762276974522,0.03618228,101580.0,101570.0,0.19690853]
[1762276974708,0.03618228,101580.0,101560.0,0.19692792]
[1762276974930,0.13424228,101580.0,101570.0,0.19690853]
[1762276975333,0.13424228,101580.0,101560.0,0.19692792]
[1762276975509,0.03618228,101580.0,101570.0,0.19690853]
[1762276977296,0.00048515,101590.0,101580.0,0.19688915]
[1762276977678,0.00198222,101590.0,101580.0,0.19688915]
[1762276977931,0.00198222,101590.0,101570.0,0.19690853]
[1762276978087,0.03666743,101590.0,101580.0,0.19688915]
[1762276978468,0.32298743,101600.0,101590.0,0.19686977]
[1762276978671,0.32313292,101600.0,101590.0,0.19686977]
[1762276978882,0.32487932,101600.0,101590.0,0.19686977]
[1762276979931,0.27855932,101600.0,101590.0,0.19686977]
[1762276980136,0.00189189,101600.0,101590.0,0.19686977]
[1762276980532,0.70209237,101600.0,101570.0,0.20675395]
[1762276980776,0.10147228,101580.0,101560.0,0.20677431]
[1762276981059,0.03618228,101580.0,101570.0,0.19690853]
[1762276981467,0.03618228,101560.0,101550.0,4e-05]
[1762276981640,0.2331102,101560.0,101550.0,4e-05]
[1762276981842,0.58746767,101560.0,101550.0,4e-05]
[1762276982008,0.03418228,101560.0,101550.0,0.0131]
[1762276982205,0.30893047,101590.0,101550.0,0.23295467]
[1762276982206,0.34,101580.0,101550.0,0.23295467]
[1762276982433,0.34,101580.0,101570.0,0.19690853]
[1762276982653,0.34,101580.0,101570.0,0.19739368]
[1762276982852,0.24322541,101610.0,101590.0,0.19686977]
[1762276982853,0.04993539,101600.0,101590.0,0.19686977]
[1762276983138,0.14438,101610.0,101590.0,0.19686977]
[1762276983270,0.04632,101610.0,101600.0,0.19685039]
[1762276983495,0.20033539,101620.0,101610.0,0.19683102]
[1762276983689,0.1504,101620.0,101610.0,0.19683102]
[1762276983907,0.1504,101620.0,101610.0,0.20989102]
[1762276984346,0.1504,101620.0,101600.0,0.20990891]
[1762276984501,0.1504,101620.0,101600.0,0.19684891]
[1762276984724,0.05054554,101620.0,101600.0,0.19684929]
[1762276984932,0.39054554,101620.0,101600.0,0.19684929]
[1762276985141,0.39054554,101620.0,101590.0,0.20671325]
[1762276985358,0.03618228,101610.0,101590.0,0.00984348]
[1762276985574,0.03618228,101590.0,101570.0,0.20675236]
[1762276985798,0.03618228,101590.0,101580.0,0.19688915]
[1762276985997,0.05416708,101590.0,101580.0,0.19688915]
[1762276986226,0.03618228,101580.0,101570.0,0.20675182]
[1762276986431,0.59105628,101580.0,101550.0,0.08634281]
[1762276986631,0.39416708,101580.0,101560.0,0.19692588]
[1762276987043,0.05416708,101580.0,101570.0,0.19690853]
[1762276987247,0.05416708,101580.0,101570.0,0.20996853]
[1762276987452,0.05541476,101580.0,101570.0,0.21045368]
[1762276987661,0.05541476,101580.0,101570.0,0.22351368]
[1762276987865,0.01923248,101580.0,101570.0,0.22351368]
[1762276988270,0.01923248,101580.0,101570.0,0.56351368]
[1762276988690,0.0504,101620.0,101610.0,0.19683102]
[1762276988894,0.06838587,101620.0,101610.0,0.22295102]
[1762276989943,0.06853141,101620.0,101610.0,0.22295102]
[1762276990147,0.06853141,101620.0,101610.0,0.19683102]
[1762276990349,0.10471369,101620.0,101610.0,0.19683102]
[1762276990558,0.03618228,101610.0,101590.0,0.20669387]
[1762276990984,0.03618228,101610.0,101600.0,0.19685039]
[1762276991181,0.0004,101630.0,101610.0,0.19682752]
[1762276991394,0.293457,101630.0,101600.0,0.37164]
[1762276991591,0.19681198,101620.0,101600.0,0.03178554]
[1762276991799,0.09665539,101630.0,101600.0,0.03178554]
[1762276992007,0.22081186,101620.0,101600.0,0.03178554]
[1762276992216,0.19681239,101620.0,101600.0,0.22863571]
[1762276992416,0.30328735,101630.0,101600.0,0.22863529]
[1762276992619,0.19681167,101620.0,101600.0,0.03178554]
[1762276992815,0.106495,101630.0,101610.0,0.19683063]
[1762276993092,0.04672,101630.0,101620.0,0.19681165]
[1762276993379,0.03618228,101620.0,101600.0,0.03178554]
[1762276993620,0.29828426,101620.0,101600.0,0.03178554]
[1762276993829,0.44627965,101620.0,101600.0,0.03178554]
[1762276994044,0.08611767,101620.0,101600.0,0.2286299]
[1762276994255,0.0004,101630.0,101610.0,0.26201102]
[1762276994471,0.0009975,101620.0,101600.0,0.37178554]
[1762276994728,0.03618228,101610.0,101600.0,0.37178554]
[1762276994935,0.23299491,101620.0,101600.0,0.56863593]
[1762276995153,0.08611767,101620.0,101600.0,0.56863558]
[1762276995361,0.08611767,101620.0,101600.0,0.22863558]
[1762276995574,0.08611767,101620.0,101600.0,0.03178554]
[1762276995784,0.03618228,101620.0,101600.0,0.03178554]
[1762276996012,0.2330133,101610.0,101600.0,0.00014554]
[1762276996228,0.03618228,101610.0,101600.0,0.00014554]
[1762276996418,0.03618228,101610.0,101600.0,0.19699593]
[1762276996664,0.03618228,101610.0,101600.0,0.00014554]
[1762276996876,0.2330133,101610.0,101600.0,0.00014554]
[1762276997093,0.41011641,101610.0,101600.0,0.00014554]
[1762276997324,0.78629869,101610.0,101600.0,0.00014554]
[1762276997757,0.39706913,101610.0,101600.0,0.00014554]
[1762276998208,3.68713374,101610.0,101600.0,0.00014554]
[1762276998433,3.73706913,101610.0,101600.0,0.00014554]
[1762276998881,3.54023811,101610.0,101600.0,0.00014554]
[1762276999087,3.54023811,101610.0,101600.0,0.19703593]
[1762276999088,0.42611767,101610.0,101600.0,0.19703593]
[1762276999311,0.5730133,101610.0,101600.0,0.00018554]
[1762276999513,0.7350233,101610.0,101600.0,0.00018554]
[1762276999734,0.19685039,101600.0,101590.0,0.183108]
[1762276999940,0.71834799,101600.0,101590.0,0.183108]
[1762277000171,0.5214976,101600.0,101590.0,0.183108]
[1762277000396,0.3763276,101600.0,101590.0,0.49398777]
[1762277000625,0.34014532,101600.0,101590.0,0.183108]
[1762277000830,0.49598247,101600.0,101590.0,0.183108]
[1762277001041,0.35815247,101600.0,101590.0,0.37997777]
[1762277001240,0.74276825,101600.0,101590.0,0.183108]
[1762277001363,0.64112053,101600.0,101590.0,0.183108]
[1762277001562,0.77952053,101600.0,101590.0,0.183108]
[1762277002176,0.72958514,101600.0,101590.0,0.183108]
[1762277002413,0.77952053,101600.0,101590.0,0.183148]
[1762277002618,0.48461014,101600.0,101590.0,0.183148]
[1762277002820,0.48461014,101600.0,101590.0,0.38001777]
[1762277002821,0.09467475,101600.0,101590.0,0.38001777]
[1762277003026,0.01815247,101600.0,101590.0,0.49087777]
[1762277003226,0.01815247,101600.0,101590.0,0.59039777]
[1762277003427,0.01815247,101600.0,101590.0,0.42554777]
[1762277003700,0.01815247,101600.0,101590.0,0.42558777]
[1762277004119,0.01815247,101600.0,101590.0,0.59043777]
[1762277004324,0.01815247,101600.0,101590.0,0.59047777]
[1762277004535,0.01815247,101600.0,101590.0,0.183228]
[1762277004736,0.09693475,101600.0,101590.0,0.183228]
[1762277004960,0.05433475,101600.0,101590.0,0.38013777]
[1762277005165,0.19270475,101600.0,101590.0,0.183268]
[1762277005378,0.5332036,101600.0,101590.0,0.38013777]
[1762277005587,0.5332036,101600.0,101590.0,0.183268]
[1762277005762,0.5332036,101600.0,101590.0,0.38013777]
[1762277005967,0.3948336,101600.0,101590.0,0.38013777]
[1762277006220,0.0548336,101600.0,101590.0,0.38013777]
[1762277006893,0.0548336,101600.0,101590.0,0.183268]
[1762277007103,0.1926736,101600.0,101590.0,0.183268]
[1762277007540,0.1926736,101600.0,101590.0,0.38013777]
[1762277007756,0.0548336,101600.0,101590.0,0.38013777]
[1762277008599,0.05068587,101600.0,101590.0,0.38013777]
[1762277008841,0.01450359,101600.0,101590.0,0.54498777]
[1762277009535,0.00049885,101600.0,101590.0,1.45257676]
[1762277009772,0.0004,101630.0,101620.0,0.19681165]
[1762277010032,0.0004,101630.0,101620.0,0.33788165]
[1762277010238,0.0004,101630.0,101620.0,0.90547064]
[1762277010459,0.00114797,101630.0,101620.0,0.33788165]
[1762277010674,0.00114797,101630.0,101620.0,0.4356477]
[1762277011097,0.00114797,101630.0,101620.0,0.33788165]
[1762277012376,0.03733025,101630.0,101620.0,0.33788165]
[1762277012607,0.03733025,101630.0,101620.0,0.04155]
[1762277012792,0.03733025,101630.0,101620.0,0.23234165]
[1762277013000,0.03618228,101620.0,101600.0,0.28123818]
[1762277013214,0.03618228,101620.0,101600.0,0.33235904]
[1762277013675,0.03618228,101620.0,101600.0,0.24018904]
[1762277013876,0.03618228,101620.0,101600.0,0.23037604]
[1762277014087,0.37618228,101620.0,101610.0,0.19683102]
[1762277014299,0.37618228,101620.0,101600.0,0.03353]
[1762277014531,0.67171588,101620.0,101600.0,0.19684998]
[1762277014743,0.52483767,101620.0,101610.0,0.19683102]
[1762277014985,0.03618228,101620.0,101600.0,0.19684998]
[1762277015203,0.13490228,101620.0,101600.0,0.19684845]
[1762277015418,0.13490228,101620.0,101610.0,0.18683102]
[1762277016044,0.13490228,101620.0,101600.0,0.19684845]
[1762277016266,0.13490228,101620.0,101610.0,0.19683102]
[1762277016267,0.03618228,101620.0,101610.0,0.19683102]
[1762277016507,0.03618228,101600.0,101590.0,0.38994817]
[1762277016724,0.08124228,101600.0,101590.0,0.38994817]
[1762277017167,0.03618228,101600.0,101590.0,0.38994817]
[1762277017381,0.03618228,101600.0,101590.0,0.42347817]
[1762277018047,0.03357396,101600.0,101590.0,0.49575413]
[1762277018474,0.23042435,101600.0,101590.0,0.183268]
[1762277018678,0.77372974,101600.0,101590.0,0.183268]
[1762277018902,0.37357396,101600.0,101590.0,0.47556777]
[1762277019128,0.41970968,101630.0,101620.0,0.19681165]
[1762277019129,0.11419665,101630.0,101620.0,0.19681165]
[1762277019343,0.3404,101630.0,101620.0,0.19681165]
[1762277019552,0.0004,101630.0,101620.0,0.19681165]
[1762277019769,0.0004,101630.0,101620.0,0.35088165]
[1762277020243,0.0004,101630.0,101620.0,0.28898165]
[1762277020473,0.01841958,101630.0,101620.0,0.19681165]
[1762277020684,0.01916755,101630.0,101620.0,0.28898165]
[1762277021100,0.01916755,101630.0,101610.0,0.19682143]
[1762277021305,0.03618228,101620.0,101610.0,0.19682795]
[1762277021570,0.05420186,101620.0,101610.0,0.19682795]
[1762277021795,0.05420186,101620.0,101600.0,0.29883128]
[1762277022018,0.05420186,101620.0,101590.0,0.48687402]
[1762277022019,0.39420186,101620.0,101590.0,0.31360856]
[1762277022225,0.39420186,101620.0,101600.0,0.19685]
[1762277022226,0.49292186,101620.0,101600.0,0.19685]
[1762277022448,0.68973473,101620.0,101590.0,0.24040231]
[1762277022650,0.03618228,101610.0,101600.0,0.19685039]
[1762277022892,0.39420186,101610.0,101590.0,0.23055977]
[1762277023036,0.39420186,101610.0,101590.0,0.32272977]
[1762277023238,0.59103508,101610.0,101590.0,0.23055835]
[1762277023439,0.59103378,101610.0,101590.0,0.03369]
[1762277023657,0.68975378,101610.0,101590.0,0.2305594]
[1762277024057,0.68975378,101610.0,101600.0,0.19685039]
[1762277024058,0.39420186,101610.0,101600.0,0.19685039]
[1762277024460,0.05420186,101610.0,101600.0,0.19685039]
[1762277025318,0.01801958,101610.0,101600.0,0.28902039]
[1762277025566,0.0004,101630.0,101620.0,0.19681165]
[1762277025792,0.01842286,101630.0,101620.0,0.19681165]
[1762277026012,0.01842286,101630.0,101610.0,0.28898369]
[1762277026281,0.03618228,101620.0,101600.0,0.2066919]
[1762277026510,0.05420514,101620.0,101610.0,0.28900102]
[1762277026753,0.05470383,101620.0,101610.0,0.28900102]
[1762277027446,0.00049869,101620.0,101610.0,0.3623403]
[1762277028172,0.37668097,101620.0,101600.0,0.20668406]
[1762277028371,0.03618228,101620.0,101610.0,0.19683102]
[1762277028547,0.03618228,101620.0,101610.0,0.25873102]
[1762277028934,0.03618228,101620.0,101610.0,0.35090102]
[1762277029133,0.0004,101630.0,101620.0,0.19681165]
[1762277030546,0.0004,101630.0,101620.0,0.35088165]
[1762277030972,0.0004,101630.0,101620.0,0.25871165]
[1762277031176,0.0004,101630.0,101620.0,0.35088165]
[1762277031579,0.03411795,101640.0,101630.0,0.19679228]
[1762277031734,0.05227704,101640.0,101620.0,0.19681165]
[1762277031961,0.05227704,101640.0,101620.0,0.28898165]
[1762277032362,0.05227704,101640.0,101610.0,0.27005026]
[1762277032563,0.05227704,101640.0,101620.0,0.19680814]
[1762277032766,0.24905002,101640.0,101620.0,0.19680814]
[1762277032967,0.05227704,101640.0,101620.0,0.29271814]
[1762277033344,0.05227704,101640.0,101630.0,0.19679228]
[1762277033619,0.03426338,101640.0,101630.0,0.25869228]
[1762277034267,0.03426338,101640.0,101620.0,0.29271814]
[1762277034404,0.23103673,101640.0,101610.0,0.27989181]
[1762277034611,0.03618228,101620.0,101610.0,0.30258045]
[1762277034810,0.03618228,101620.0,101610.0,0.20667045]
[1762277035017,0.03618228,101620.0,101610.0,0.36448045]
[1762277035213,0.03618228,101620.0,101600.0,0.20672406]
[1762277035445,0.03618228,101620.0,101610.0,0.19683102]
[1762277035819,0.03618228,101620.0,101600.0,0.30263406]
[1762277036025,0.03618228,101620.0,101610.0,0.19683102]
[1762277036227,0.03618228,101620.0,101600.0,0.30263406]
[1762277036648,0.03618228,101620.0,101610.0,0.19683102]
[1762277036865,0.03618228,101620.0,101600.0,0.30263406]
[1762277037088,0.03618228,101620.0,101610.0,0.35464102]
[1762277037296,0.03618228,101620.0,101610.0,0.19683102]
[1762277037297,0.03318228,101620.0,101610.0,0.19683102]
[1762277037505,0.03318228,101620.0,101610.0,0.00974693]
[1762277037726,0.22999393,101620.0,101610.0,0.00974693]
[1762277037954,0.56999393,101620.0,101610.0,0.00974693]
[1762277038155,0.48359767,101620.0,101610.0,0.00974693]